fUST/lending_fUST_20241104
["ID","MTS","AMOUNT","RATE_DAILY","PERIOD"]
[341235382,1730710230808,-256761.9315569,0.0004,120]
[341235383,1730710230834,-1121.32928195,0.0004,120]
[341235384,1730710230858,-41649.59914164,0.0004,120]
[341235385,1730710230883,-649.2844214,0.000401,60]
[341235386,1730710230908,-200.0,0.000405,32]
[341235387,1730710230932,-1030.59479811,0.000405,120]
[341235388,1730710230957,-500.0,0.00040507,30]
[341235389,1730710230980,-500.0,0.00040507,30]
[341235390,1730710231005,-500.0,0.00040507,30]
[341235391,1730710231028,-500.0,0.00040507,30]
[341235392,1730710231054,-500.0,0.00040507,30]
[341235393,1730710231079,-500.0,0.00040507,30]
[341235394,1730710231103,-500.0,0.00040507,30]
[341235395,1730710231126,-500.0,0.00040507,30]
[341235396,1730710231149,-500.0,0.00040507,30]
[341235397,1730710231176,-500.0,0.00040507,30]
[341235398,1730710231200,-500.0,0.00040507,30]
[341235399,1730710231224,-500.0,0.00040507,30]
[341235400,1730710231248,-190.0,0.00040507,30]
[341235401,1730710231271,-500.0,0.00040507,30]
[341235402,1730710231295,-500.0,0.00040507,30]
[341235403,1730710231319,-500.0,0.00040507,30]
[341235404,1730710231343,-500.0,0.00040507,30]
[341235405,1730710231366,-500.0,0.00040507,30]
[341235408,1730710231389,-504.71385633,0.00040507,30]
[341235410,1730710231412,-500.0,0.00040507,30]
[341235411,1730710231435,-504.70697877,0.00040507,30]
[341235412,1730710231458,-500.0,0.00040507,30]
[341235413,1730710231482,-500.0,0.00040507,30]
[341235416,1730710231505,-500.0,0.00040507,30]
[341235418,1730710231528,-500.0,0.00040507,30]
[341235419,1730710231553,-500.0,0.00040507,30]
[341235421,1730710231580,-500.0,0.00040507,30]
[341235424,1730710231607,-500.0,0.00040507,30]
[341235428,1730710231630,-500.0,0.00040507,30]
[341235430,1730710231654,-500.0,0.00040507,30]
[341235434,1730710231678,-500.0,0.00040507,30]
[341235437,1730710231785,-500.0,0.00040507,30]
[341235438,1730710231809,-500.0,0.00040507,30]
[341235439,1730710231839,-1967.94,0.00040684,120]
[341235440,1730710231863,-5000.0,0.000409,90]
[341235441,1730710231888,-148300.37903545,0.00041,30]
[341235442,1730710235403,-1000000.0,0.00041,30]
[341235457,1730710235805,-178.406701,0.00030231,2]
[341235459,1730710235814,-178.406701,0.00030268,2]
[341235461,1730710235827,-178.406701,0.00030306,2]
[341235463,1730710235836,-178.406701,0.00030344,2]
[341235465,1730710235845,-178.406701,0.00030382,2]
[341235467,1730710235855,-357.0,0.00030411,2]
[341235469,1730710235864,-163.0,0.00031644,2]
[341235471,1730710235874,-357.0,0.00031644,2]
[341235473,1730710235884,-773.4724582,0.00031825,2]
[341235475,1730710235893,-369.81726314,0.00031904,2]
[341235477,1730710235902,-400.0,0.00031998,2]
[341235479,1730710235911,-150.01,0.00031999,2]
[341235481,1730710235921,-12171.74517004,0.00031999,2]
[341235483,1730710235930,-2782.31594664,0.00032056,2]
[341235485,1730710235939,-1275.78708425,0.0003212,10]
[341235487,1730710235951,-587.17663188,0.0003212,10]
[341235489,1730710235962,-1472.49747248,0.0003212,10]
[341235492,1730710235973,-515.25402673,0.0003212,10]
[341235564,1730710238164,-15500.97513489,0.0003212,10]
[341235567,1730710238178,-160.0,0.00032155,5]
[341235569,1730710238189,-773.4724582,0.00032325,2]
[341235571,1730710238203,-5000.0,0.000325,7]
[341235574,1730710238215,-151.0,0.000325,7]
[341235576,1730710238227,-151.0,0.000325,7]
[341235578,1730710238240,-151.0,0.000325,7]
[341235580,1730710238253,-198.426646,0.000325,7]
[341235583,1730710238265,-151.0,0.000325,7]
[341235585,1730710238277,-267.442301,0.000325,2]
[341235587,1730710238288,-275.55144539,0.000325,7]
[341235589,1730710238300,-5079.37695307,0.00032776,2]
[341235742,1730710239818,-1582.31824086,0.00032776,2]
[341235744,1730710239829,-773.4724582,0.00032825,2]
[341235746,1730710239838,-501.44712668,0.00032873,2]
[341235748,1730710239847,-500.0,0.00032873,2]
[341235750,1730710239858,-500.0,0.00032873,5]
[341235752,1730710239868,-418.10722219,0.00032875,2]
[341235754,1730710239877,-244.95,0.00032875,2]
[341235756,1730710239887,-244.95,0.00032875,2]
[341235758,1730710239897,-244.95,0.00032875,2]
[341235760,1730710239907,-244.95,0.00032875,2]
[341235762,1730710239917,-244.95,0.00032875,2]
[341235764,1730710239927,-244.95,0.00032875,2]
[341235766,1730710239936,-244.95,0.00032875,2]
[341235768,1730710239946,-244.95,0.00032875,2]
[341235770,1730710239956,-244.95,0.00032875,2]
[341235772,1730710239965,-500.0,0.00032876,2]
[341235774,1730710239974,-500.0,0.00032876,2]
[341235776,1730710239984,-500.0,0.00032876,2]
[341235778,1730710239993,-92.13796335,0.00032876,2]
[341235781,1730710240005,-407.86203665,0.00032876,2]
[341235783,1730710240014,-183.5015623,0.00032876,2]
[341235788,1730710240052,-316.4984377,0.00032876,2]
[341235790,1730710240062,-500.0,0.00032876,2]
[341235792,1730710240072,-426.66356128,0.00032876,2]
[341235794,1730710240083,-500.0,0.00032876,4]
[341235796,1730710240093,-151.0,0.00032876,7]
[341235798,1730710240102,-151.0,0.00032876,7]
[341235800,1730710240111,-500.0,0.00032876,2]
[341235802,1730710240121,-500.0,0.00032876,2]
[341235804,1730710240131,-500.0,0.00032876,2]
[341235806,1730710240140,-500.0,0.00032876,2]
[341235808,1730710240149,-500.0,0.00032876,2]
[341235810,1730710240159,-500.0,0.00032876,2]
[341235812,1730710240171,-500.0,0.00032876,2]
[341235814,1730710240181,-553.0288359,0.00032876,2]
[341235816,1730710240190,-500.0,0.00032876,4]
[341235818,1730710240199,-151.0,0.00032876,7]
[341235820,1730710240210,-842.18,0.00032876,4]
[341235822,1730710240219,-250.0,0.00032876,4]
[341235824,1730710240229,-151.0,0.00032876,7]
[341235826,1730710240238,-80.44829725,0.00032876,7]
[341236097,1730710244266,-909.33,0.000336,30]
[341236098,1730710244303,-909.33,0.000353,30]
[341236099,1730710244336,-909.33,0.000368,30]
[341236100,1730710244365,-909.33,0.000385,30]
[341236101,1730710244395,-909.33,0.000409,30]
[341236102,1730710244419,-995453.35,0.00041,30]
[341236109,1730710246558,-284.79913423,0.00032055,2]
[341236110,1730710246569,-2061.69181709,0.00032055,2]
[341236111,1730710246578,-70.55170275,0.00032876,7]
[341236112,1730710246588,-151.0,0.00032876,7]
[341236113,1730710246600,-225.58008217,0.00032876,4]
[341236114,1730710246609,-151.0,0.00032876,7]
[341236115,1730710246619,-153.927335,0.00032876,7]
[341236116,1730710246629,-204.621556,0.00032876,7]
[341236117,1730710246638,-151.0,0.00032876,7]
[341236118,1730710246648,-151.0,0.00032876,7]
[341236119,1730710246657,-151.0,0.00032876,7]
[341236120,1730710246666,-151.474146,0.00032876,7]
[341236121,1730710246676,-521.13918533,0.00032876,4]
[341236122,1730710246685,-152.996128,0.00032876,7]
[341236123,1730710246694,-511.83407456,0.00032876,4]
[341236124,1730710246704,-502.31491476,0.00032876,4]
[341236125,1730710246713,-531.87555792,0.00032876,4]
[341236126,1730710246723,-503.13088853,0.00032876,4]
[341236127,1730710246733,-151.0,0.00032876,7]
[341236128,1730710246742,-151.0,0.00032876,7]
[341236129,1730710246752,-500.0,0.00032876,4]
[341236130,1730710246762,-554.57396362,0.00032876,4]
[341236131,1730710246772,-151.0,0.00032876,7]
[341236132,1730710246781,-151.0,0.00032876,7]
[341236133,1730710246790,-151.0,0.00032876,7]
[341236134,1730710246800,-151.0,0.00032876,7]
[341236135,1730710246810,-500.0,0.00032876,7]
[341236136,1730710246819,-521.6252775,0.00032876,4]
[341236137,1730710246828,-523.05605701,0.00032876,4]
[341236138,1730710246838,-151.0,0.00032876,7]
[341236139,1730710246847,-151.0,0.00032876,7]
[341236140,1730710246856,-151.0,0.00032876,7]
[341236141,1730710246866,-151.0,0.00032876,7]
[341236142,1730710246875,-275.051554,0.00032876,7]
[341236143,1730710246884,-500.0,0.00032876,4]
[341236144,1730710246895,-151.0,0.00032876,7]
[341236145,1730710246905,-151.0,0.00032876,7]
[341236146,1730710246914,-500.0,0.00032876,4]
[341236147,1730710246924,-151.0,0.00032876,7]
[341236148,1730710246934,-151.0,0.00032876,7]
[341236149,1730710246943,-153.625073,0.00032876,7]
[341236150,1730710246953,-521.30417963,0.00032876,4]
[341236151,1730710246964,-151.0,0.00032876,7]
[341236152,1730710246974,-293.858571,0.00032876,7]
[341236153,1730710246984,-500.0,0.00032876,4]
[341236154,1730710246993,-531.60165368,0.00032876,4]
[341236155,1730710247118,-510.99838056,0.00032876,4]
[341236156,1730710247128,-580.04880393,0.00032876,4]
[341236157,1730710247138,-500.0,0.00032876,4]
[341236158,1730710247147,-151.0,0.00032876,7]
[341236159,1730710247156,-151.0,0.00032876,7]
[341236160,1730710247166,-151.0,0.00032876,7]
[341236161,1730710247175,-500.0,0.00032876,2]
[341236162,1730710247188,-151.0,0.00032876,7]
[341236163,1730710247199,-151.0,0.00032876,7]
[341236164,1730710247208,-151.0,0.00032876,7]
[341236165,1730710247217,-434.32065727,0.00032876,4]
[341236166,1730710247227,-160.722672,0.00032876,7]
[341236167,1730710247236,-621.53126438,0.00032876,4]
[341236168,1730710248609,-492.49873562,0.00032876,4]
[341236169,1730710248619,-151.0,0.00032876,7]
[341236170,1730710248628,-151.0,0.00032876,7]
[341236171,1730710248637,-151.0,0.00032876,7]
[341236172,1730710248647,-500.0,0.00032876,4]
[341236173,1730710248656,-412.29283097,0.00032876,4]
[341236174,1730710248665,-434.42550049,0.00032876,4]
[341236175,1730710338708,170.584435,0.00013973,2]
[341236177,1730710865861,173.475752,0.00013973,2]
[341236178,1730710945739,345.073207,0.00033725,30]
[341236179,1730710951138,746.67,0.00033725,30]
[341236180,1730710951434,768.0,0.00033725,30]
[341236181,1730710951752,826.45,0.00033725,30]
[341236182,1730710952135,417.22,0.00033725,30]
[341236183,1730710952368,437.65,0.00033725,30]
[341236184,1730710952891,455.0,0.00033725,30]
[341236185,1730710953313,469.0,0.00033725,30]
[341236186,1730710954191,514.3,0.00033725,30]
[341236187,1730710954257,573.962,0.00033725,30]
[341236188,1730710987007,860.34009212,0.00033725,90]
[341236189,1730710992736,2104.05644,0.00033725,30]
[341236190,1730711032649,1000.0,0.00033725,30]
[341236191,1730711032988,263.8,0.00033725,30]
[341236192,1730711036312,1000.0,0.00033725,60]
[341236193,1730711036682,1000.0,0.00033725,60]
[341236194,1730711037106,364.6,0.00033725,60]
[341236195,1730711039888,1000.0,0.00033725,90]
[341236196,1730711040297,1000.0,0.00033725,90]
[341236197,1730711040671,364.6,0.00033725,90]
[341236198,1730711043959,1000.0,0.00033725,120]
[341236199,1730711044410,1000.0,0.00033725,120]
[341236200,1730711044853,364.6,0.00033725,120]
[341236201,1730711103141,739.0,0.00024,60]
[341236202,1730711103176,5070.68744973,0.00033727,30]
[341236203,1730711103309,594.56,0.00024,60]
[341236204,1730711103341,565.39,0.00033727,30]
[341236205,1730711103372,695.015,0.00033727,120]
[341236206,1730711103404,1390.03,0.00033727,120]
[341236207,1730711168384,179.63,0.0002,2]
[341236208,1730711169698,179.63,0.00017,2]
[341236209,1730711170186,179.63,0.00013,2]
[341236210,1730711170581,179.63,0.0001,2]
[341236211,1730711174482,150.0,0.00018,30]
[341236212,1730711175109,150.0,0.00014,30]
[341236213,1730711175493,150.0,0.00011,30]
[341236214,1730711178237,579.24,0.00023,60]
[341236215,1730711178628,579.24,0.00019,60]
[341236216,1730711179395,579.24,0.00015,60]
[341236217,1730711179795,579.24,0.00011,60]
[341236226,1730711225122,-161.72838124,0.00021681,2]
[341236227,1730711225144,-1561.81627564,0.00021698,2]
[341236228,1730711233189,620.73,0.00033727,30]
[341236229,1730711236101,250.0,0.00033728,30]
[341236230,1730711236708,250.0,0.00033728,30]
[341236231,1730711237125,250.0,0.00033728,30]
[341236232,1730711237618,250.0,0.00033728,30]
[341236233,1730711240117,-2011.31455202,0.00021698,2]
[341236244,1730711338342,1000.0,0.00033728,90]
[341236245,1730711338715,1000.0,0.00033728,90]
[341236246,1730711339447,364.2,0.00033728,90]
[341236247,1730711339865,1000.0,0.00033728,120]
[341236248,1730711340322,1000.0,0.00033728,120]
[341236249,1730711340748,364.6,0.00033728,120]
[341236250,1730711345103,-250.0,0.00020765,2]
[341236251,1730711345126,-154.26023396,0.00021598,2]
[341236252,1730711345147,-161.72838122,0.00021673,2]
[341236253,1730711345170,-161.72838122,0.00021681,2]
[341236254,1730711345193,-4793.40114684,0.00021698,2]
[341236255,1730711345214,-300.0,0.00021772,2]
[341236256,1730711345240,-300.0,0.00021772,2]
[341236257,1730711345261,-500.0,0.00021773,2]
[341236258,1730711345283,-500.0,0.00021773,2]
[341236259,1730711345303,-500.0,0.00021773,2]
[341236260,1730711345322,-503.4058284,0.00021773,2]
[341236261,1730711345342,-500.0,0.00021773,2]
[341236262,1730711345362,-500.0,0.00021773,2]
[341236263,1730711345383,-500.0,0.00021773,2]
[341236264,1730711345403,-513.2884806,0.00021773,2]
[341236265,1730711345425,-500.0,0.0002178,2]
[341236266,1730711345537,-500.0,0.0002178,2]
[341236267,1730711345559,-500.0,0.0002178,2]
[341236268,1730711345581,-500.0,0.0002178,2]
[341236269,1730711345602,-500.0,0.0002178,2]
[341236270,1730711345622,-500.0,0.0002178,2]
[341236271,1730711345643,-500.0,0.0002178,2]
[341236272,1730711345665,-500.0,0.0002178,2]
[341236273,1730711345686,-500.0,0.0002178,2]
[341236274,1730711345709,-500.0,0.0002178,2]
[341236275,1730711345730,-500.0,0.0002178,2]
[341236276,1730711345751,-500.0,0.0002178,2]
[341236277,1730711345773,-500.0,0.0002178,2]
[341236278,1730711345794,-639.04834466,0.0002178,2]
[341236279,1730711345815,-500.0,0.0002178,2]
[341236280,1730711345835,-500.0,0.0002178,2]
[341236281,1730711345856,-500.0,0.0002178,2]
[341236282,1730711345876,-563.53022075,0.0002178,2]
[341236283,1730711345896,-500.0,0.0002178,2]
[341236284,1730711345917,-500.0,0.0002178,2]
[341236285,1730711345939,-500.0,0.0002178,2]
[341236286,1730711345959,-500.0,0.0002178,2]
[341236287,1730711345981,-500.0,0.0002178,2]
[341236288,1730711346002,-500.0,0.0002178,2]
[341236289,1730711346027,-500.0,0.0002178,2]
[341236290,1730711346049,-500.0,0.0002178,2]
[341236291,1730711346071,-500.0,0.0002178,2]
[341236292,1730711346093,-500.0,0.0002178,2]
[341236293,1730711346114,-500.0,0.0002178,2]
[341236294,1730711346135,-500.0,0.0002178,2]
[341236295,1730711346155,-500.0,0.0002178,2]
[341236296,1730711346176,-450.0,0.0002178,2]
[341236297,1730711346199,-500.0,0.0002178,2]
[341236298,1730711346223,-500.0,0.0002178,2]
[341236299,1730711346245,-367.78569098,0.0002178,2]
[341236300,1730711346266,-500.0,0.0002178,2]
[341236301,1730711346287,-500.0,0.0002178,2]
[341236302,1730711346309,-500.0,0.0002178,2]
[341236303,1730711346330,-500.0,0.0002178,2]
[341236304,1730711346351,-500.0,0.0002178,2]
[341236305,1730711346373,-500.0,0.0002178,2]
[341236306,1730711346395,-500.0,0.0002178,2]
[341236307,1730711346417,-500.0,0.0002178,2]
[341236308,1730711346443,-500.0,0.0002178,2]
[341236309,1730711346464,-500.0,0.0002178,2]
[341236310,1730711346483,-500.0,0.0002178,2]
[341236311,1730711346503,-167.61433469,0.0002178,2]
[341236312,1730711346524,-500.0,0.0002178,2]
[341236313,1730711346546,-500.0,0.0002178,2]
[341236314,1730711346567,-340.39224675,0.0002178,2]
[341236315,1730711346589,-500.0,0.0002178,2]
[341236316,1730711346611,-500.0,0.0002178,2]
[341236317,1730711346632,-500.0,0.0002178,2]
[341236318,1730711346654,-500.0,0.0002178,2]
[341236319,1730711346676,-500.0,0.0002178,2]
[341236320,1730711346700,-500.0,0.0002178,2]
[341236321,1730711346724,-550.0,0.0002178,2]
[341236322,1730711346745,-500.0,0.0002178,2]
[341236323,1730711346767,-500.0,0.0002178,2]
[341236324,1730711346796,-500.0,0.0002178,2]
[341236325,1730711346817,-500.0,0.0002178,2]
[341236326,1730711346839,-500.0,0.0002178,2]
[341236327,1730711346859,-500.0,0.0002178,2]
[341236328,1730711346881,-500.0,0.0002178,2]
[341236329,1730711346903,-500.0,0.0002178,2]
[341236330,1730711346924,-350.83847995,0.0002178,2]
[341236331,1730711346946,-271.69712882,0.00021781,2]
[341236332,1730711346967,-266.40599411,0.00021781,2]
[341236333,1730711346993,-546.05387607,0.00021781,2]
[341236334,1730711347014,-207.53954374,0.00021781,2]
[341236335,1730711347035,-185.87118999,0.00021781,2]
[341236336,1730711347058,-24900.0,0.00021782,2]
[341236337,1730711347079,-4712.02733002,0.00021818,2]
[341236338,1730711347100,-166.666666,0.00021918,2]
[341236339,1730711347121,-809.6480681,0.00021976,2]
[341236340,1730711347142,-4489.6853841,0.00021987,2]
[341236341,1730711347163,-150.0,0.00022,30]
[341236342,1730711347186,-166.666666,0.00022453,2]
[341236343,1730711347207,-805.99884684,0.00022687,2]
[341236344,1730711347228,-7330.408253,0.00022687,2]
[341236345,1730711347248,-1125.193306,0.00022819,2]
[341236346,1730711347269,-3000.0,0.00022891,2]
[341236347,1730711347289,-935.099625,0.00022905,2]
[341236348,1730711347309,-166.666666,0.00022988,2]
[341236349,1730711347329,-190.6312074,0.00023099,2]
[341236350,1730711347350,-1000.0,0.00023142,2]
[341236351,1730711347449,-624.74822782,0.00023142,2]
[341236352,1730711347472,-1000.0,0.00023142,2]
[341236353,1730711347493,-938.48928652,0.00023142,2]
[341236354,1730711347514,-241.60184233,0.00023223,2]
[341236355,1730711347535,-506.1997249,0.00023237,2]
[341236356,1730711347556,-621.71842867,0.00023237,2]
[341236357,1730711347577,-157.627262,0.00023307,2]
[341236358,1730711347599,-811.07,0.00023362,3]
[341236359,1730711347621,-5000.0,0.00023371,2]
[341236360,1730711347641,-7330.408253,0.00023372,2]
[341236361,1730711347662,-501.44712668,0.00023373,2]
[341236362,1730711347687,-279.35101403,0.00023373,2]
[341236363,1730711347708,-1174.2638888,0.0002346,2]
[341236364,1730711347728,-166.666666,0.00023523,2]
[341236365,1730711347749,-161.7291528,0.00023603,2]
[341236366,1730711347771,-241.60184229,0.00023605,2]
[341236367,1730711347794,-420.0,0.00023664,2]
[341236368,1730711347815,-8757.9349848,0.00023694,2]
[341236369,1730711347837,-420.0,0.00023949,2]
[341236370,1730711347857,-241.60184229,0.00023987,2]
[341236371,1730711347878,-179.63,0.00024,2]
[341236372,1730711347898,-7330.408253,0.00024057,2]
[341236373,1730711347919,-166.666666,0.00024058,2]
[341236374,1730711347940,-241.60184229,0.00024368,2]
[341236375,1730711347961,-5000.0,0.00024554,2]
[341236376,1730711347983,-5000.0,0.00024554,2]
[341236377,1730711348004,-5000.0,0.00024557,2]
[341236378,1730711348024,-22689.09066205,0.00024558,2]
[341236379,1730711348044,-163.0,0.00024573,2]
[341236380,1730711348064,-493.25084273,0.00024573,2]
[341236381,1730711348084,-411.05052998,0.00024573,2]
[341236382,1730711348106,-500.0,0.00024573,2]
[341236383,1730711348131,-500.0,0.00024573,2]
[341236384,1730711348155,-500.0,0.00024573,2]
[341236385,1730711348182,-500.0,0.00024573,2]
[341236386,1730711348204,-505.09944298,0.00024573,2]
[341236387,1730711348228,-166.666666,0.00024593,2]
[341236388,1730711348251,-5000.0,0.00024657,2]
[341236389,1730711348272,-150.0,0.00024658,2]
[341236390,1730711348293,-380.0,0.00024658,2]
[341236391,1730711348315,-500.3372912,0.00024658,4]
[341236392,1730711348337,-200.0,0.00024658,2]
[341236393,1730711348359,-500.0,0.00024658,2]
[341236394,1730711348380,-500.0,0.00024658,2]
[341236395,1730711348402,-425.34651495,0.00024658,2]
[341236396,1730711348424,-500.0,0.00024658,2]
[341236397,1730711348446,-500.0,0.00024658,2]
[341236398,1730711348468,-500.0,0.00024658,2]
[341236399,1730711348489,-500.0,0.00024658,2]
[341236400,1730711348509,-500.0,0.00024658,2]
[341236401,1730711348529,-500.0,0.00024658,2]
[341236402,1730711348550,-500.0,0.00024658,2]
[341236403,1730711348572,-500.0,0.00024658,2]
[341236404,1730711348597,-463.19546295,0.00024658,2]
[341236405,1730711348620,-4712.02733,0.00024687,2]
[341236406,1730711348642,-241.60184229,0.0002475,2]
[341236407,1730711348663,-1500.0,0.00025647,2]
[341236408,1730711348684,-1508.94257186,0.00025647,2]
[341236409,1730711348706,-587.0,0.00025721,2]
[341236410,1730711348732,-200.480516,0.00025746,2]
[341236411,1730711348754,-200.480516,0.00025753,2]
[341236412,1730711348776,-200.480516,0.0002576,2]
[341236413,1730711348796,-200.480516,0.00025767,2]
[341236414,1730711348820,-200.480516,0.00025774,2]
[341236415,1730711348840,-200.480516,0.0002578,2]
[341236416,1730711348861,-200.480516,0.00025787,2]
[341236417,1730711348883,-200.480516,0.00025794,2]
[341236418,1730711348905,-200.480516,0.00025801,2]
[341236419,1730711348927,-200.480516,0.00025807,2]
[341236420,1730711348951,-200.480516,0.00025814,2]
[341236421,1730711348972,-200.480516,0.00025821,2]
[341236422,1730711348994,-200.480516,0.00025828,2]
[341236423,1730711349016,-200.480516,0.00025834,2]
[341236424,1730711349038,-200.480516,0.00025841,2]
[341236425,1730711349059,-200.480516,0.00025848,2]
[341236426,1730711349081,-200.480516,0.00025855,2]
[341236427,1730711349102,-200.480516,0.00025861,2]
[341236428,1730711349123,-200.480516,0.00025868,2]
[341236429,1730711349145,-200.480516,0.00025875,2]
[341236430,1730711349168,-5000.0,0.00025942,2]
[341236431,1730711349191,-504.56731117,0.00025942,2]
[341236432,1730711349284,-1000.0,0.00025942,2]
[341236433,1730711349308,-1006.80060353,0.00025942,2]
[341236434,1730711349329,-1000.0,0.00025942,2]
[341236435,1730711349350,-150.0,0.00026,30]
[341236436,1730711349370,-579.24,0.00026,60]
[341236437,1730711349392,-587.0,0.00026344,2]
[341236438,1730711349414,-179.63,0.00027,2]
[341236439,1730711349437,-4712.02733,0.00027556,2]
[341236440,1730711349459,-157.101,0.00027655,17]
[341236441,1730711349482,-823.0,0.00027957,2]
[341236442,1730711349503,-1500.0,0.00028447,5]
[341236443,1730711349524,-1500.0,0.00028447,5]
[341236444,1730711349546,-1058.15434803,0.00028891,2]
[341236445,1730711349654,5000.0,0.00020186,2]
[341236446,1730711349710,-331.8736744,0.00020825,2]
[341236447,1730711368103,-941.84565197,0.00028891,2]
[341236448,1730711368124,-681.0,0.00028978,2]
[341236449,1730711368145,-2517.15984832,0.00029019,2]
[341236450,1730711375440,161.566567,0.00013973,2]
[341236451,1730711375669,161.566567,0.00020807,2]
[341236453,1730711403343,271.78210031,0.00024658,2]
[341236454,1730711428842,5000.0,0.00021917,2]
[341236455,1730711429138,684.30099187,0.00021986,2]
[341236483,1730711432208,-161.566567,0.00027641,2]
[341236485,1730711432219,-1373.96791,0.00028957,2]
[341236487,1730711432228,-524.2272559,0.00029007,2]
[341236489,1730711432239,-482.84015168,0.00029019,2]
[341236491,1730711432248,-200.0,0.000299,120]
[341236493,1730711432258,-151.0,0.0003,120]
[341236495,1730711432268,-200.6475,0.0003,2]
[341236497,1730711432278,-182.2875,0.0003,2]
[341236499,1730711432288,-151.0,0.0003,120]
[341236502,1730711432298,-167.2065,0.0003,2]
[341236504,1730711432308,-150.0,0.0003,30]
[341236506,1730711432318,-579.24,0.0003,60]
[341236508,1730711432327,-306.3725747,0.00030137,2]
[341236510,1730711432337,-400.0,0.00030424,2]
[341236512,1730711432346,-2915.52151122,0.00030425,2]
[341236517,1730711432390,-1796.50581878,0.00030425,2]
[341236519,1730711432399,-500.0,0.000305,5]
[341236521,1730711432409,-500.0,0.000305,5]
[341236523,1730711432419,-418.10722219,0.00030923,2]
[341236525,1730711432428,-500.0,0.00030973,2]
[341236527,1730711432438,-17718.85,0.00031,5]
[341236529,1730711432447,-179.63,0.00031,2]
[341236532,1730711432458,-160.0,0.0003122,3]
[341236534,1730711432467,-482.40748716,0.00031582,2]
[341236536,1730711432477,-200.0,0.000316,120]
[341236538,1730711432486,-502.47979722,0.0003187,5]
[341236540,1730711432496,-1000.0,0.0003187,5]
[341236542,1730711432505,-19999.221477,0.00032,2]
[341236544,1730711432515,-537.33256456,0.00032,7]
[341236546,1730711432524,-151.0,0.00032219,120]
[341236548,1730711432534,-1000.0,0.00032342,2]
[341236550,1730711432543,-244.1170164,0.00032411,2]
[341236552,1730711432552,-365.121,0.00032671,2]
[341236554,1730711432562,-151.0,0.0003274,120]
[341236556,1730711432571,-560.0,0.00032776,2]
[341236558,1730711432581,-1851.37263653,0.000328,60]
[341236560,1730711432590,-13000.000002,0.000328,2]
[341236562,1730711432600,-150.0,0.00032873,4]
[341236564,1730711432609,-500.0,0.00032873,5]
[341236566,1730711432618,-500.0,0.00032873,5]
[341236568,1730711432628,-284.79913423,0.00032875,2]
[341236570,1730711432637,-2061.69181709,0.00032875,2]
[341236572,1730711432647,-335.67,0.00032875,2]
[341236573,1730711432656,-335.67,0.00032875,2]
[341236575,1730711432666,-335.67,0.00032875,2]
[341236577,1730711432675,-335.67,0.00032875,2]
[341236579,1730711432684,-335.67,0.00032875,2]
[341236580,1730711432694,-335.67,0.00032875,2]
[341236581,1730711432703,-335.67,0.00032875,2]
[341236582,1730711432713,-335.67,0.00032875,2]
[341236583,1730711432723,-335.67,0.00032875,2]
[341236584,1730711432733,-500.0,0.00032876,4]
[341236585,1730711432743,-500.0,0.00032876,7]